bitfinex/quotes_BTCUSD_20250624
["timestamp","ask_amount","ask_price","bid_price","bid_amount"]
[1750799402871,0.25273266,105970.0,105960.0,0.47684279]
[1750799403244,0.25473266,105970.0,105960.0,0.47784279]
[1750799405563,0.25473266,105970.0,105960.0,0.001]
[1750799409179,0.59473266,105970.0,105960.0,0.001]
[1750799422172,0.59473266,105970.0,105960.0,0.0199]
[1750799430558,0.69023452,105970.0,105960.0,0.001]
[1750799432018,0.20764447,105950.0,105940.0,0.00998726]
[1750799432248,0.42762447,105950.0,105940.0,0.02893327]
[1750799432458,0.42762447,105950.0,105940.0,0.01894601]
[1750799433303,0.42762447,105950.0,105940.0,4.601e-05]
[1750799433480,0.42762447,105950.0,105940.0,0.00104601]
[1750799439687,0.27214447,105950.0,105940.0,0.00104601]
[1750799439893,0.42762447,105950.0,105940.0,0.33008002]
[1750799440105,0.42762447,105950.0,105940.0,0.00104601]
[1750799440314,0.42762447,105950.0,105940.0,0.00340556]
[1750799442145,0.42762447,105950.0,105940.0,0.02230556]
[1750799442711,0.42762447,105950.0,105940.0,0.10230556]
[1750799450339,0.42262447,105950.0,105940.0,0.10230556]
[1750799452214,0.26714447,105950.0,105940.0,0.73724798]
[1750799452406,0.20264447,105950.0,105940.0,0.72544922]
[1750799452590,0.20264447,105950.0,105940.0,0.73488852]
[1750799452591,0.35808447,105950.0,105940.0,0.73488852]
[1750799452919,0.35808447,105950.0,105940.0,0.74432773]
[1750799453284,0.41044651,105950.0,105940.0,0.20998872]
[1750799453493,0.41044651,105950.0,105940.0,0.53666312]
[1750799453698,0.41044651,105950.0,105940.0,0.72544922]
[1750799458083,0.41044651,105950.0,105940.0,0.53666312]
[1750799458317,0.41044651,105950.0,105940.0,0.51615769]
[1750799460092,0.41044651,105950.0,105940.0,0.20998872]
[1750799460703,0.41044651,105950.0,105940.0,0.09994601]
[1750799460905,0.41044651,105950.0,105940.0,0.40611498]
[1750799461284,0.41044651,105950.0,105940.0,0.09994601]
[1750799464916,0.41044651,105950.0,105940.0,0.40611498]
[1750799472262,0.41044651,105950.0,105940.0,0.09994601]
[1750799472458,0.41044651,105950.0,105940.0,0.40611498]
[1750799474811,0.25500651,105950.0,105940.0,0.99657191]
[1750799475037,0.41036651,105950.0,105940.0,0.50161684]
[1750799475246,0.40592828,105950.0,105940.0,0.50161684]
[1750799477271,0.40592828,105950.0,105940.0,0.19544787]
[1750799477495,0.40592828,105950.0,105940.0,0.50161684]
[1750799478830,0.40592828,105950.0,105940.0,0.19544787]
[1750799479052,0.40592828,105950.0,105940.0,0.50161684]
[1750799480384,0.40592828,105950.0,105940.0,0.09994601]
[1750799481749,0.40592828,105950.0,105940.0,0.01994601]
[1750799484701,0.25056828,105950.0,105940.0,0.01994601]
[1750799484877,0.40592828,105950.0,105940.0,0.01994601]
[1750799490355,0.25056828,105950.0,105940.0,0.01994601]
[1750799490569,0.40592828,105950.0,105940.0,0.01994601]
[1750799493225,0.40592828,105950.0,105940.0,0.66437262]
[1750799493226,0.26000651,105950.0,105940.0,0.66437262]
[1750799493427,0.38442651,105950.0,105940.0,0.31877482]
[1750799493637,0.38442651,105950.0,105940.0,0.12998872]
[1750799493638,0.40818828,105950.0,105940.0,0.12998872]
[1750799493854,0.40818828,105950.0,105940.0,0.13234822]
[1750799494247,0.40818828,105950.0,105940.0,0.32113432]
[1750799494527,0.40818828,105950.0,105940.0,0.31877482]
[1750799495152,0.40818828,105950.0,105940.0,0.32821412]
[1750799500570,0.40818828,105950.0,105940.0,0.33765333]
[1750799500780,0.40818828,105950.0,105940.0,0.34709245]
[1750799500982,0.40818828,105950.0,105940.0,0.6738121]
[1750799505462,0.40814828,105950.0,105940.0,0.66437298]
[1750799506367,0.40814828,105950.0,105940.0,0.64383022]
[1750799509134,0.40814828,105950.0,105940.0,0.63439101]
[1750799514811,0.40814828,105950.0,105940.0,0.43616561]
[1750799517372,0.40814828,105950.0,105940.0,0.62495171]
[1750799518366,0.40814828,105950.0,105940.0,0.12998872]
[1750799518576,0.40814828,105950.0,105940.0,0.43616561]
[1750799519535,0.40814828,105950.0,105940.0,0.12998872]
[1750799519737,0.40814828,105950.0,105940.0,0.43616561]
[1750799521561,0.40814828,105950.0,105940.0,0.63439092]
[1750799522003,0.40814828,105950.0,105940.0,0.94056781]
[1750799522238,0.26128719,105960.0,105950.0,0.21274745]
[1750799522491,0.0188737,105960.0,105950.0,0.33656302]
[1750799522759,0.011436,105970.0,105960.0,0.24103997]
[1750799522976,0.011436,105970.0,105960.0,0.94889561]
[1750799523403,0.002,105970.0,105960.0,0.94889561]
[1750799523639,0.011436,105970.0,105960.0,0.94889561]
[1750799524075,0.01143592,105970.0,105960.0,0.94889561]
[1750799524332,0.01143583,105970.0,105960.0,0.94889561]
[1750799524552,0.01143583,105970.0,105960.0,1.12299561]
[1750799524553,0.002,105970.0,105960.0,1.12299561]
[1750799525420,0.003,105970.0,105960.0,1.12299561]
[1750799525636,0.002,105970.0,105960.0,1.12299561]
[1750799526067,0.002,105970.0,105960.0,1.12399561]
[1750799526283,0.002,105970.0,105960.0,1.16433825]
[1750799526745,0.002,105970.0,105960.0,1.19267825]
[1750799527166,0.002,105970.0,105960.0,1.17377825]
[1750799528341,0.002,105970.0,105960.0,1.17577825]
[1750799528968,0.002,105970.0,105960.0,0.84943004]
[1750799529893,0.002,105970.0,105960.0,1.17577825]
[1750799530342,0.002,105970.0,105960.0,1.20447379]
[1750799531079,0.002,105970.0,105960.0,0.87812558]
[1750799531939,0.002,105970.0,105960.0,1.20447379]
[1750799533022,0.002,105970.0,105960.0,0.87812558]
[1750799533238,0.01143583,105970.0,105960.0,0.87812558]
[1750799533450,0.04183583,105970.0,105960.0,0.87812558]
[1750799534323,0.0629,105970.0,105960.0,0.87812558]
[1750799534542,0.07233583,105970.0,105960.0,0.87812558]
[1750799534766,0.0629,105970.0,105960.0,0.87812558]
[1750799537057,0.0629,105970.0,105960.0,0.89702558]
[1750799537260,0.0629,105970.0,105960.0,0.87812558]
[1750799537735,0.27994121,105970.0,105960.0,0.35882872]
[1750799537954,0.26106911,105970.0,105960.0,0.35882872]
[1750799538100,0.41614911,105970.0,105960.0,0.35882872]
[1750799538703,0.41614911,105970.0,105960.0,0.33048872]
[1750799538910,0.41614911,105970.0,105960.0,0.33992624]
[1750799539543,0.41614911,105970.0,105960.0,0.34936367]
[1750799539771,0.41614911,105970.0,105960.0,0.14173825]
[1750799539978,0.41614911,105970.0,105960.0,0.11304271]
[1750799539979,0.40671266,105970.0,105960.0,0.11304271]
[1750799541158,0.41614911,105970.0,105960.0,0.31123052]
[1750799541357,0.41614911,105970.0,105960.0,0.37123061]
[1750799542784,0.41614911,105970.0,105960.0,0.38066795]
[1750799545524,0.42558529,105970.0,105960.0,0.72589013]
[1750799545753,0.42558529,105970.0,105960.0,0.71645323]
[1750799546781,0.42558529,105970.0,105960.0,0.71645341]
[1750799547329,0.42558529,105970.0,105960.0,0.74479057]
[1750799547937,0.42558529,105970.0,105960.0,0.75422764]
[1750799549250,0.44445846,105970.0,105960.0,0.75422719]
[1750799549466,0.24628917,105970.0,105960.0,0.75422719]
[1750799549680,0.23685263,105970.0,105960.0,0.75422719]
[1750799549876,0.24628917,105970.0,105960.0,0.75422675]
[1750799550095,0.24628917,105970.0,105960.0,0.74478985]
[1750799550298,0.21798,105970.0,105960.0,0.74478985]
[1750799550511,0.227416,105970.0,105960.0,0.75422675]
[1750799550730,0.23685218,105970.0,105960.0,0.75422675]
[1750799551154,0.227416,105970.0,105960.0,0.75422675]
[1750799551399,0.08177192,105970.0,105960.0,0.75422675]
[1750799554361,0.09120819,105970.0,105960.0,0.75422675]
[1750799554827,0.10064464,105970.0,105960.0,0.75422675]
[1750799555014,0.09120819,105970.0,105960.0,0.75422675]
[1750799557206,0.10064464,105970.0,105960.0,0.75422675]
[1750799557814,0.10064464,105970.0,105960.0,0.78256775]
[1750799559507,0.10064464,105970.0,105960.0,0.81065076]
[1750799559735,0.11008118,105970.0,105960.0,0.81065076]
[1750799559950,0.10064464,105970.0,105960.0,0.81065076]
[1750799564127,0.11008118,105970.0,105960.0,0.81065076]
[1750799564982,0.11008118,105970.0,105960.0,0.80121386]
[1750799565142,0.28937855,105970.0,105960.0,0.78233981]
[1750799565499,0.28937855,105970.0,105960.0,0.79177688]
[1750799567090,0.09120926,105970.0,105960.0,0.80121378]
[1750799568348,0.10064589,105970.0,105960.0,0.79177688]
[1750799569636,0.10064589,105970.0,105960.0,0.80121386]
[1750799570070,0.28937855,105970.0,105960.0,0.80121386]
[1750799570673,0.10064589,105970.0,105960.0,0.80121386]
[1750799572259,0.10064589,105970.0,105960.0,1.08693027]
[1750799572482,0.27050583,105970.0,105960.0,0.7431495]
[1750799572845,0.27050583,105970.0,105960.0,0.76202436]
[1750799573050,0.26106929,105970.0,105960.0,0.75258702]
[1750799573619,0.26106929,105970.0,105960.0,0.76202445]
[1750799573814,0.26106929,105970.0,105960.0,0.77146179]
[1750799575487,0.26106929,105970.0,105960.0,0.78089904]
[1750799575930,0.26106929,105970.0,105960.0,0.7903362]
[1750799576322,0.26106929,105970.0,105960.0,1.09636806]
[1750799576862,0.26106929,105970.0,105960.0,1.08693099]
[1750799577087,0.26106929,105970.0,105960.0,1.09636806]
[1750799577561,0.26106929,105970.0,105960.0,1.08693099]
[1750799578419,0.08177245,105970.0,105960.0,1.09636789]
[1750799578648,0.08177192,105970.0,105960.0,1.09636789]
[1750799578866,0.09120819,105970.0,105960.0,1.09636789]
[1750799579086,0.08177192,105970.0,105960.0,1.09636789]
[1750799579271,0.09120819,105970.0,105960.0,1.09636789]
[1750799580192,0.10064455,105970.0,105960.0,1.09636789]
[1750799581743,0.11008171,105970.0,105960.0,1.09636789]
[1750799582673,0.28937828,105970.0,105960.0,1.07749383]
[1750799582901,0.27994201,105970.0,105960.0,1.11797383]
[1750799583117,0.27994201,105970.0,105960.0,1.12741099]
[1750799583346,0.27994201,105970.0,105960.0,1.13684806]
[1750799585115,0.28937864,105970.0,105960.0,1.13684761]
[1750799588811,0.07233583,105970.0,105960.0,1.13684717]
[1750799589056,0.09120828,105970.0,105960.0,1.13684717]
[1750799590311,0.09120828,105970.0,105960.0,0.85118517]
[1750799591761,0.09120828,105970.0,105960.0,1.00606517]
[1750799596858,0.09120819,105970.0,105960.0,1.00606517]
[1750799597064,0.10064464,105970.0,105960.0,1.00606517]
[1750799597959,0.10064464,105970.0,105960.0,0.67966255]
[1750799598140,0.10064464,105970.0,105960.0,1.00606517]
[1750799601131,0.29881393,105970.0,105960.0,0.95887981]
[1750799601341,0.10064464,105970.0,105960.0,0.9871912]
[1750799601555,0.11008118,105970.0,105960.0,0.9966281]
[1750799601761,0.10064464,105970.0,105960.0,0.9966281]
[1750799601980,0.09120819,105970.0,105960.0,0.9966281]
[1750799602229,0.08177192,105970.0,105960.0,0.9966281]
[1750799602463,0.07233583,105970.0,105960.0,0.9966281]
[1750799602665,0.08177183,105970.0,105960.0,0.9966281]
[1750799603319,0.09120801,105970.0,105960.0,0.9966281]
[1750799603542,0.09120792,105970.0,105960.0,0.9966281]
[1750799604352,0.08177183,105970.0,105960.0,0.9966281]
[1750799604527,0.09120801,105970.0,105960.0,0.9966281]
[1750799604746,0.10064428,105970.0,105960.0,0.9966281]
[1750799605740,0.11008073,105970.0,105960.0,0.9966281]
[1750799607216,0.11008073,105970.0,105960.0,0.8012681]
[1750799607431,0.28937819,105970.0,105960.0,0.76351981]
[1750799607645,0.27994201,105970.0,105960.0,0.78239449]
[1750799607858,0.27994201,105970.0,105960.0,0.98699165]
[1750799608287,0.27994201,105970.0,105960.0,0.99642872]
[1750799610432,0.27994201,105970.0,105960.0,1.28209826]
[1750799611184,0.27994201,105970.0,105960.0,1.26322403]
[1750799611595,0.27050574,105970.0,105960.0,1.26322403]
[1750799613114,0.27050574,105970.0,105960.0,1.27266119]
[1750799615579,0.26106929,105970.0,105960.0,0.75547026]
[1750799615803,0.26106929,105970.0,105960.0,0.71258841]
[1750799616029,0.26106929,105970.0,105960.0,0.73656678]
[1750799616703,0.25163266,105970.0,105960.0,0.42109318]
[1750799616921,0.25163266,105970.0,105960.0,0.53837879]
[1750799618241,0.25163266,105970.0,105960.0,0.72712926]
[1750799619364,0.25163266,105970.0,105960.0,0.73656678]
[1750799619575,0.25163266,105970.0,105960.0,0.74600421]
[1750799620952,0.25163266,105970.0,105960.0,0.73656678]
[1750799622347,0.25163266,105970.0,105960.0,0.74633027]
[1750799622534,0.25163266,105970.0,105960.0,0.7557677]
[1750799622732,0.25163266,105970.0,105960.0,0.44973162]
[1750799622949,0.25163266,105970.0,105960.0,0.7557677]
[1750799625091,0.25163266,105970.0,105960.0,1.07124112]
[1750799625207,0.0629,105970.0,105960.0,0.47792302]
[1750799625411,0.0629,105970.0,105960.0,1.08999518]
[1750799625610,0.002,105970.0,105960.0,1.11833518]
[1750799626623,0.07443592,105970.0,105960.0,1.11833518]
[1750799626835,0.065,105970.0,105960.0,1.11833518]
[1750799627041,0.07443583,105970.0,105960.0,1.11833518]
[1750799628564,0.08387175,105970.0,105960.0,1.11833518]
[1750799628772,0.09330784,105970.0,105960.0,1.11833518]
[1750799629010,0.07443583,105970.0,105960.0,1.11833518]
[1750799629506,0.09330801,105970.0,105960.0,1.11833518]
[1750799629746,0.08387183,105970.0,105960.0,1.11833518]
[1750799630454,0.08387192,105970.0,105960.0,1.11833518]
[1750799630697,0.08387183,105970.0,105960.0,1.11833518]
[1750799630903,0.065,105970.0,105960.0,1.11833518]
[1750799631174,0.07443592,105970.0,105960.0,1.11833518]
[1750799631662,0.08387192,105970.0,105960.0,1.27297518]
[1750799631911,0.07443592,105970.0,105960.0,1.27297518]
[1750799632393,0.07443583,105970.0,105960.0,1.27297518]
[1750799632633,0.08387183,105970.0,105960.0,1.27297518]
[1750799633087,0.08387183,105970.0,105960.0,1.30176216]
[1750799638824,0.07443583,105970.0,105960.0,1.30176216]
[1750799640240,0.065,105970.0,105960.0,1.10684216]
[1750799640446,0.09330793,105970.0,105960.0,1.30176216]
[1750799641267,0.09330784,105970.0,105960.0,1.30176216]
[1750799642254,0.1027442,105970.0,105960.0,1.30176216]
[1750799642452,0.29147757,105970.0,105960.0,0.95793725]
[1750799642654,0.29147757,105970.0,105960.0,1.28284783]
[1750799642880,0.29147757,105970.0,105960.0,0.97681175]
[1750799643086,0.28204165,105970.0,105960.0,1.28284792]
[1750799643443,0.28204165,105970.0,105960.0,1.29228499]
[1750799644067,0.09330899,105970.0,105960.0,1.29228499]
[1750799644274,0.09330899,105970.0,105960.0,1.30172197]
[1750799644476,0.09330899,105970.0,105960.0,1.14712197]
[1750799644674,0.10274562,105970.0,105960.0,1.14712197]
[1750799645347,0.29147828,105970.0,105960.0,1.13768499]
[1750799645555,0.29147828,105970.0,105960.0,0.82221184]
[1750799645959,0.29147828,105970.0,105960.0,0.83164891]
[1750799647108,0.29147828,105970.0,105960.0,0.82221184]
[1750799647317,0.28204219,105970.0,105960.0,0.82221184]
[1750799647528,0.28204219,105970.0,105960.0,0.83164891]
[1750799647715,0.28204219,105970.0,105960.0,1.13768499]
[1750799648137,0.28204219,105970.0,105960.0,0.82221193]
[1750799648559,0.28204219,105970.0,105960.0,0.83164909]
[1750799648773,0.28204219,105970.0,105960.0,0.84108616]
[1750799649197,0.28204219,105970.0,105960.0,0.25883318]
[1750799649416,0.26316929,105970.0,105960.0,0.79389973]
[1750799649631,0.25373266,105970.0,105960.0,0.79389973]
[1750799650213,0.40833266,105970.0,105960.0,0.12000349]
[1750799650443,0.40833266,105970.0,105960.0,0.11024]
[1750799650678,0.40833266,105970.0,105960.0,0.09134]
[1750799650893,0.4839649,105970.0,105960.0,0.03134]
[1750799651338,0.4839649,105970.0,105960.0,0.02834]
[1750799651562,0.4849649,105970.0,105960.0,0.02834]
[1750799651778,0.4849649,105970.0,105960.0,0.02934]
[1750799652000,0.8249649,105970.0,105960.0,0.04823]
[1750799652217,0.8239649,105970.0,105960.0,0.02834]
[1750799652419,0.26804447,105950.0,105940.0,0.00992436]
[1750799652624,0.42264447,105950.0,105940.0,4.601e-05]
[1750799654107,0.42364447,105950.0,105940.0,0.00104601]
[1750799655348,0.43317836,105950.0,105940.0,0.00104601]
[1750799657039,0.42364447,105950.0,105940.0,0.00104601]
[1750799659766,0.43358234,105950.0,105940.0,0.00104601]
[1750799660201,0.42364447,105950.0,105940.0,0.00104601]
[1750799662471,0.76364447,105950.0,105940.0,0.00104601]
[1750799663538,0.85914633,105950.0,105940.0,0.00104601]
[1750799663981,0.85914633,105950.0,105940.0,4.601e-05]
[1750799664205,0.88750433,105950.0,105940.0,4.601e-05]
[1750799664440,0.89739464,105950.0,105940.0,4.601e-05]
[1750799664647,0.89639464,105950.0,105940.0,4.601e-05]
[1750799665072,0.90039464,105950.0,105940.0,4.601e-05]
[1750799666685,0.87203664,105950.0,105940.0,4.601e-05]
[1750799666901,0.87403664,105950.0,105940.0,4.601e-05]
[1750799667317,0.86414633,105950.0,105940.0,4.601e-05]
[1750799668082,0.86214633,105950.0,105940.0,4.601e-05]
[1750799668285,0.86914633,105950.0,105940.0,4.601e-05]
[1750799673823,0.87879444,105950.0,105940.0,4.601e-05]
[1750799677198,0.86914633,105950.0,105940.0,4.601e-05]
[1750799677841,0.61904447,105950.0,105940.0,4.601e-05]
[1750799678040,0.61904447,105950.0,105940.0,0.30638027]
[1750799678240,0.77364447,105950.0,105940.0,4.601e-05]
[1750799678682,0.76664447,105950.0,105940.0,4.601e-05]
[1750799678880,0.77164447,105950.0,105940.0,4.601e-05]
[1750799679119,0.76764447,105950.0,105940.0,4.601e-05]
[1750799679325,0.76964447,105950.0,105940.0,4.601e-05]
[1750799691379,0.90534633,105950.0,105940.0,4.601e-05]
[1750799691600,0.93462179,105950.0,105940.0,4.601e-05]
[1750799691808,0.95231445,105950.0,105940.0,4.601e-05]
[1750799692246,0.95231489,105950.0,105940.0,4.601e-05]
[1750799694501,0.95230964,105950.0,105940.0,4.601e-05]
[1750799696091,0.9279872,105950.0,105940.0,4.601e-05]
[1750799696334,0.95228116,105950.0,105940.0,4.601e-05]
[1750799696762,0.95228079,105950.0,105940.0,4.601e-05]
[1750799697188,0.95227984,105950.0,105940.0,4.601e-05]
[1750799699190,0.9279872,105950.0,105940.0,4.601e-05]
[1750799699414,0.94564479,105950.0,105940.0,4.601e-05]
[1750799699676,0.94563891,105950.0,105940.0,4.601e-05]
[1750799701050,0.94941991,105950.0,105940.0,4.601e-05]
[1750799701498,1.04488986,105950.0,105940.0,4.601e-05]
[1750799701713,1.04488626,105950.0,105940.0,4.601e-05]
[1750799701924,0.94941631,105950.0,105940.0,4.601e-05]
[1750799703051,0.94941395,105950.0,105940.0,4.601e-05]
[1750799703262,0.94940894,105950.0,105940.0,4.601e-05]
[1750799704119,0.95602421,105950.0,105940.0,4.601e-05]
[1750799704326,0.94940894,105950.0,105940.0,4.601e-05]
[1750799704774,0.94940629,105950.0,105940.0,4.601e-05]
[1750799704932,1.04487624,105950.0,105940.0,4.601e-05]
[1750799706783,1.04481297,105950.0,105940.0,4.601e-05]
[1750799707663,0.94934266,105950.0,105940.0,4.601e-05]
[1750799713334,0.94934856,105950.0,105940.0,4.601e-05]
[1750799713760,1.04869856,105950.0,105940.0,4.601e-05]
[1750799713970,0.94934856,105950.0,105940.0,4.601e-05]
[1750799715078,0.95596835,105950.0,105940.0,4.601e-05]
[1750799716419,0.95596845,105950.0,105940.0,4.601e-05]
[1750799717685,1.03088751,105950.0,105940.0,4.601e-05]
[1750799719151,0.95596845,105950.0,105940.0,4.601e-05]
[1750799719993,0.76116845,105950.0,105940.0,4.601e-05]
[1750799720213,0.95592845,105950.0,105940.0,4.601e-05]
[1750799720910,0.98415046,105950.0,105940.0,4.601e-05]
[1750799722171,0.98420599,105950.0,105940.0,4.601e-05]
[1750799723693,0.98416599,105950.0,105940.0,4.601e-05]
[1750799724674,0.78944599,105950.0,105940.0,4.601e-05]
[1750799724883,0.93336638,105950.0,105940.0,4.601e-05]
[1750799725122,0.92674781,105950.0,105940.0,4.601e-05]
[1750799725503,0.94939914,105950.0,105940.0,4.601e-05]
[1750799726857,0.21464447,105950.0,105940.0,0.02844601]
[1750799727106,0.36916447,105950.0,105940.0,0.02844601]
[1750799727281,0.70916447,105950.0,105940.0,0.02844601]
[1750799727480,0.21464447,105950.0,105940.0,0.02844601]
[1750799727683,0.21464447,105950.0,105940.0,0.66334728]
[1750799727968,0.36916447,105950.0,105940.0,0.67278631]
[1750799728176,0.36916447,105950.0,105940.0,0.68222525]
[1750799728388,0.03531371,105950.0,105940.0,0.69166393]
[1750799728593,0.04475194,105950.0,105940.0,0.69166393]
[1750799728792,0.19927194,105950.0,105940.0,0.69166393]
[1750799729205,0.1992723,105950.0,105940.0,0.6916641]
[1750799729410,0.1898338,105950.0,105940.0,0.70110278]
[1750799729617,0.17095761,105950.0,105940.0,0.70110278]
[1750799729802,0.1753954,105950.0,105940.0,0.70110278]
[1750799730240,0.1783954,105950.0,105940.0,0.70110278]
[1750799731088,0.005,105950.0,105940.0,0.74226278]
[1750799731305,0.002,105970.0,105960.0,0.23160281]
[1750799731516,0.011436,105970.0,105960.0,0.69389801]
[1750799731943,0.002,105970.0,105960.0,0.72224001]
[1750799732163,0.01143592,105970.0,105960.0,0.72224001]
[1750799732379,0.01143592,105970.0,105960.0,0.74564001]
[1750799732630,0.01243592,105970.0,105960.0,0.74564001]
[1750799732843,0.003,105970.0,105960.0,0.74564001]
[1750799733053,0.002,105970.0,105960.0,0.74564001]
[1750799733267,0.002,105970.0,105960.0,0.74664001]
[1750799733494,0.003,105970.0,105960.0,0.74664001]
[1750799733942,0.01243592,105970.0,105960.0,0.74664001]
[1750799734380,0.02187201,105970.0,105960.0,0.74664001]
[1750799734595,0.01243592,105970.0,105960.0,0.74664001]
[1750799735311,0.02187192,105970.0,105960.0,0.74664001]
[1750799735539,0.03130819,105970.0,105960.0,0.74664001]
[1750799735774,0.0313081,105970.0,105960.0,0.74664001]
[1750799736440,0.0313081,105970.0,105960.0,0.77441163]
[1750799736898,0.04074455,105970.0,105960.0,0.44777829]
[1750799737123,0.04074455,105970.0,105960.0,0.78384861]
[1750799738713,0.04074446,105970.0,105960.0,0.78384861]
[1750799739880,0.04074437,105970.0,105960.0,0.78384861]
[1750799742356,0.0313081,105970.0,105960.0,0.78384861]
[1750799742818,0.04074446,105970.0,105960.0,0.78384861]
[1750799746634,0.05018091,105970.0,105960.0,0.78384861]
[1750799746869,0.04074446,105970.0,105960.0,0.78384861]
[1750799747906,0.05018091,105970.0,105960.0,0.78384861]
[1750799748701,0.04074446,105970.0,105960.0,0.78384861]
[1750799748904,0.05018091,105970.0,105960.0,0.78384861]
[1750799750361,0.27390547,105970.0,105960.0,0.001]
[1750799752022,0.61390547,105970.0,105960.0,0.001]
[1750799752453,0.23964447,105950.0,105940.0,0.00204601]
[1750799752657,0.39404447,105950.0,105940.0,0.09654787]
[1750799752871,0.42534447,105950.0,105940.0,0.09654787]
[1750799754101,0.42534447,105950.0,105940.0,0.09754787]
[1750799755162,0.42534447,105950.0,105940.0,0.09954787]
[1750799756130,0.42534447,105950.0,105940.0,0.10930676]
[1750799762235,0.42534447,105950.0,105940.0,0.12819676]
[1750799767933,0.42534447,105950.0,105940.0,0.0326949]
[1750799771638,0.42534447,105950.0,105940.0,0.6436162]
[1750799771867,0.36204447,105950.0,105940.0,0.4548301]
[1750799772070,0.39514447,105950.0,105940.0,0.4548301]
[1750799772271,0.42664447,105950.0,105940.0,0.4548301]
[1750799772678,0.42664447,105950.0,105940.0,0.12819676]
[1750799776614,0.42664447,105950.0,105940.0,0.32642216]
[1750799777048,0.27224447,105950.0,105940.0,0.32642216]
[1750799777264,0.42664447,105950.0,105940.0,0.33586137]
[1750799777703,0.39514447,105950.0,105940.0,0.33586137]
[1750799778117,0.39514447,105950.0,105940.0,0.66249471]
[1750799779538,0.38570651,105950.0,105940.0,0.66249471]
[1750799780509,0.0188745,105960.0,105950.0,0.23162329]
[1750799780722,0.37146187,105960.0,105950.0,0.6443207]
[1750799781378,0.40236187,105960.0,105950.0,0.6443207]
[1750799781589,0.40236187,105960.0,105950.0,0.63488265]
[1750799781797,0.39292497,105960.0,105950.0,0.64432079]
[1750799782420,0.39292497,105960.0,105950.0,0.65375884]
[1750799783331,0.39292497,105960.0,105950.0,0.63488265]
[1750799783564,0.39292497,105960.0,105950.0,0.64432088]
[1750799783779,0.40236249,105960.0,105950.0,0.65375884]
[1750799783992,0.1742745,105960.0,105950.0,0.68659663]
[1750799784207,0.18371193,105960.0,105950.0,0.68659663]
[1750799784424,0.18371193,105960.0,105950.0,0.66319663]
[1750799784627,0.3724624,105960.0,105950.0,0.66319663]
[1750799785934,0.0104369,105960.0,105950.0,0.66319663]
[1750799786161,0.17427362,105960.0,105950.0,0.68659663]
[1750799786377,0.18371078,105960.0,105950.0,0.68659663]
[1750799786582,0.17427362,105960.0,105950.0,0.68659663]
[1750799786991,0.18371069,105960.0,105950.0,0.68659663]
[1750799787199,0.18271069,105960.0,105950.0,0.68759663]
[1750799787649,0.0329,105970.0,105960.0,0.23160281]
[1750799787872,0.22500429,105970.0,105960.0,0.65373801]
[1750799788727,0.21556793,105970.0,105960.0,0.65373801]
[1750799789414,0.02087175,105970.0,105960.0,0.65373801]
[1750799789633,0.002,105970.0,105960.0,1.04389135]
[1750799790132,0.003,105970.0,105960.0,1.04389135]
[1750799790337,0.002,105970.0,105960.0,1.04389135]
[1750799790552,0.002,105970.0,105960.0,1.04589135]
[1750799790978,0.002,105970.0,105960.0,1.04489135]
[1750799791154,0.002,105970.0,105960.0,1.04789135]
[1750799791651,0.002,105970.0,105960.0,1.04689135]
[1750799792995,0.002,105970.0,105960.0,1.04989135]
[1750799796979,0.002,105970.0,105960.0,1.58989135]
[1750799797189,0.002,105970.0,105960.0,1.73989135]
[1750799799324,0.09440258,105990.0,105980.0,0.23156184]
[1750799799540,0.09440258,105990.0,105980.0,0.69381704]
[1750799799766,0.033,105990.0,105980.0,0.69381704]
[1750799799926,0.0022,105990.0,105980.0,0.84381704]
[1750799800670,0.00224601,105990.0,105980.0,0.84381704]
[1750799800870,0.00324601,105990.0,105980.0,0.84381704]
[1750799801294,0.00324601,105990.0,105980.0,0.84481704]
[1750799802352,0.00324601,105990.0,105980.0,0.86821704]
[1750799802996,0.00324601,105990.0,105980.0,0.86921704]
[1750799803425,0.0321,106000.0,105990.0,0.21700051]
[1750799803658,0.0002,106000.0,105990.0,0.98916905]
[1750799804077,0.0002,106000.0,105990.0,0.66253571]
[1750799804298,0.0002,106000.0,105990.0,0.67707656]
[1750799804764,0.0002,106000.0,105990.0,0.83139656]
[1750799805013,0.0002,106000.0,105990.0,1.6980299]
[1750799805432,0.0002,106000.0,105990.0,1.6990299]
[1750799805854,0.0002,106000.0,105990.0,1.6980299]
[1750799806066,0.09180054,106000.0,105990.0,0.29363366]
[1750799806284,0.27104698,106000.0,105990.0,0.09750186]
[1750799806553,0.76532698,106000.0,105990.0,0.002]
[1750799806769,0.76632698,106000.0,105990.0,0.002]
[1750799807196,0.27090529,105970.0,105960.0,0.002]
[1750799807455,0.42518529,105970.0,105960.0,0.09750186]
[1750799808336,0.42518529,105970.0,105960.0,0.11204271]
[1750799808558,0.42518529,105970.0,105960.0,0.002]
[1750799809230,0.42518529,105970.0,105960.0,0.004]
[1750799809865,0.42518529,105970.0,105960.0,0.005]
[1750799821550,0.42518529,105970.0,105960.0,0.003]
[1750799821730,0.42518529,105970.0,105960.0,0.002]
[1750799826589,0.42918529,105970.0,105960.0,0.002]
[1750799836076,0.27490529,105970.0,105960.0,0.002]
[1750799836292,0.42922529,105970.0,105960.0,0.002]
[1750799841931,0.27490529,105970.0,105960.0,0.002]
[1750799842172,0.42922529,105970.0,105960.0,0.002]
[1750799843251,0.41978911,105970.0,105960.0,0.09750186]
[1750799844099,0.41978911,105970.0,105960.0,0.002]
[1750799844312,0.41778911,105970.0,105960.0,0.002]
[1750799844542,0.41978911,105970.0,105960.0,0.002]
[1750799845193,0.41778911,105970.0,105960.0,0.002]
[1750799845606,0.41878911,105970.0,105960.0,0.002]
[1750799846057,0.26446911,105970.0,105960.0,0.002]
[1750799846279,0.41878911,105970.0,105960.0,0.002]
[1750799854018,0.26446911,105970.0,105960.0,0.002]
[1750799854227,0.41878911,105970.0,105960.0,0.002]
[1750799855952,0.22062,105970.0,105960.0,0.28625233]
[1750799856153,0.42762565,105970.0,105960.0,0.43867605]
[1750799856468,0.42762565,105970.0,105960.0,0.31023061]
[1750799856796,0.39538565,105970.0,105960.0,0.31966795]
[1750799857015,0.24110565,105970.0,105960.0,0.31966795]
[1750799857232,0.39538565,105970.0,105960.0,0.31966795]
[1750799860154,0.39538565,105970.0,105960.0,0.31023061]
[1750799862900,0.38594929,105970.0,105960.0,0.30079318]
[1750799863034,0.37651266,105970.0,105960.0,0.11204271]
[1750799863236,0.40741266,105970.0,105960.0,0.11204271]
[1750799877167,0.40741266,105970.0,105960.0,0.30079318]
[1750799877831,0.40741266,105970.0,105960.0,0.11204271]
[1750799878030,0.40741266,105970.0,105960.0,0.30079318]
[1750799878257,0.003,105970.0,105960.0,0.62742652]
[1750799878465,0.20446056,105970.0,105960.0,0.67913809]
[1750799879087,0.20446136,105970.0,105960.0,0.67913809]
[1750799879653,0.19502473,105970.0,105960.0,0.67913809]
[1750799880074,0.19302473,105970.0,105960.0,0.67913809]
[1750799880264,0.19302464,105970.0,105960.0,0.68857499]
[1750799880462,0.20246118,105970.0,105960.0,0.68857499]